Cogmind - Beta 15 @@@ ROGUE MODE // 2025.06.14 @ 20:34:55 Player: GodofBeaverz Result: Destroyed by 52-CGP(R) with Subdweller Beam Cannon Performance ------------- Evolutions (0) 0 Regions Visited (3) 600 Robots Destroyed (33) 165 Value Destroyed (767) 767 Prototype IDs (3) 60 Alien Tech Used (0) 0 Bonus (80) 80 TOTAL SCORE: 1672 Bonus ------- Follower Combat Kills 90 Friendly Fire -10 Cogmind --------- Core Integrity 0/250 Matter 208/300 Energy 100/100 System Corruption 0% Temperature Cool (9) Movement Treading (260) Ox1 Location -10/Subcaves Parts ------- > --- POWER (1) -------- (None) > --- PROPULSION (2) --- Spiked Treads > --- UTILITY (2) ------ Large Storage Unit Experimental Sensor Array > --- WEAPON (2) ------- Subdweller Beam Cannon Subdweller Machine Gun > --- INVENTORY (15) --- Heat Sink Small Storage Unit Subdweller Optics Core Shielding Scrap Shield Grenade Launcher Flamer Shrapnel Trap Scrap Shield Fragment (44) Peak State ------------ > --- POWER ------------ Subdweller Power Source > --- PROPULSION ------- Spiked Treads > --- UTILITY ---------- Large Storage Unit Experimental Sensor Array > --- WEAPON ----------- Subdweller Beam Cannon Subdweller Machine Gun > --- INVENTORY -------- Heat Sink Small Storage Unit Subdweller Optics Core Shielding Scrap Shield Grenade Launcher Flamer Shrapnel Trap Scrap Shield Fragment [Rating: 19] Favorites ----------- Power Light Ion Engine Engine Light Ion Engine Power Core Light Nuclear Core Propulsion Light Treads Treads Light Treads Flight Unit Flight Unit Utility Large Storage Unit Device Experimental Sensor Array Storage Large Storage Unit Protection Core Shielding Weapon Light Assault Rifle Energy Gun EM Pulse Gun Energy Cannon Subdweller Beam Cannon Ballistic Gun Light Assault Rifle Ballistic Cannon Light Cannon Launcher Grenade Launcher Build | -11 -10 -10 -10 ------- Run | Yrd Mat Min Sub Slots Evolved . | . . . . Power . | . . . . Propulsion . | . . . . Utility . | . . . . Weapon . | . . . . Parts Attached 31 | 5 12 . 14 Power 5 | . 2 . 3 Engine 4 | . 2 . 2 Core 1 | . . . 1 Reactor . | . . . . Propulsion 7 | 2 3 . 2 Treads 5 | 2 1 . 2 Leg . | . . . . Wheel . | . . . . Hover . | . . . . Flight 2 | . 2 . . Utility 7 | 1 3 . 3 Device 4 | . 1 . 3 Storage 2 | 1 1 . . Processor . | . . . . Hackware . | . . . . Protection 1 | . 1 . . Artifact . | . . . . Weapon 12 | 2 4 . 6 Energy Gun 2 | 1 1 . . Energy Cannon 1 | . . . 1 Ballistic Gun 5 | 1 1 . 3 Ballistic Cannon 2 | . 2 . . Launcher 2 | . . . 2 Special Weapon . | . . . . Impact Weapon . | . . . . Slashing Weapon . | . . . . Piercing Weapon . | . . . . Special Melee Weapon . | . . . . Unidentified Prototypes 1 | . . . 1 Parts Lost 13 | . 5 . 8 Power 3 | . 1 . 2 Propulsion 4 | . 1 . 3 Utility 1 | . . . 1 Weapon 5 | . 3 . 2 Highest Loss Streak 6 | . 2 . 6 To Critical Strikes . | . . . . Average Backups 7 | 1 3 10 9 Power . | 1 1 1 . Propulsion . | . . 1 . Utility 2 | . . 2 5 Weapon 3 | . 1 5 3 Tool/Special . | . . . . Unused Backups 9 | 1 1 . 7 Power 2 | . 1 . 1 Propulsion . | . . . . Utility 2 | . . . 2 Weapon 5 | 1 . . 4 Tool/Special . | . . . . Average Slot Usage (%) 91 | . 84 100 85 Engine 10 | . 10 14 4 Core 1 | . . . 4 Treads 25 | . 26 28 20 Device 3 | . . . 11 Storage 13 | . 13 14 14 Protection 7 | . 4 14 1 Energy Gun 1 | . 5 . . Energy Cannon 2 | . . . 7 Ballistic Gun 21 | . 16 28 16 Ballistic Cannon 1 | . 4 . . Launcher 1 | . . . 3 Peak Build Rating 19 | 5 7 9 19 Average Rating 9 | 3 5 8 14 On Entrance 5 | . 5 7 9 Naked Turns . | . . . . Heaviest Build 38 | 8 26 26 38 Greatest Support 40 | 40 40 40 40 Greatest Overweight (x) 10 | . . . 10 Average Overweight (x) . | . . . . Largest Inventory Capacity 15 | 8 15 15 15 Average Capacity 13 | 7 9 15 15 Most Carried 15 | 4 8 12 15 Average Carried 8 | 1 3 10 12 Final Capacity 15 | 8 15 15 15 Final Carried 12 | 2 8 12 10 Class Distribution -------------------- 91% | Mutant 8% | Scavenger-Mutant Dominant Class ---------------- Mutant | -10/Materials Mutant | -10/Mines Mutant | -10/Subcaves Resources | -11 -10 -10 -10 ----------- Run | Yrd Mat Min Sub Matter Collected 977 | 254 412 37 274 Remotely . | . . . . Salvage Created 904 | 125 516 42 221 Parts 56 | 3 35 1 17 Haulers Intercepted 2 | . 2 . . Recyclers Shooed . | . . . . Parts Field Recycled . | . . . . Retrieved Matter . | . . . . Parts Self-Destructed 6 | . . . 6 Prevented . | . . . . Kills | -11 -10 -10 -10 ------- Run | Yrd Mat Min Sub Combat Hostiles Destroyed 26 | . 13 3 10 Guns 19 | . 11 3 5 Cannons 2 | . 2 . . AOE 5 | . . . 5 Classes Destroyed 9 | 2 6 . 1 Worker 1 | 1 . . . Builder 1 | . 1 . . Hauler 2 | . 2 . . Recycler 1 | 1 . . . Operator 1 | . 1 . . Watcher 1 | . 1 . . Swarmer 10 | . 4 3 3 Grunt 9 | . 9 . . Subdweller 7 | . . . 7 Best Kill Streak 3 | 2 2 2 3 Combat Bots Only 3 | . 2 2 3 Max Kills in Single Turn 2 | 1 1 1 2 Gunslinging . | . . . . Exploded 2 | . . . 2 Melee . | . . . . Uniques/NPCs Destroyed . | . . . . Combat | -11 -10 -10 -10 -------- Run | Yrd Mat Min Sub Hostile Shots Fired 210 | . 103 19 88 Missed 77 | . 34 5 38 Hits 133 | . 69 14 50 Projectile 133 | . 69 14 50 AOE 4 | . . . 4 Critical Strikes 3 | . 1 . 2 Damage Taken 1698 | . 759 131 808 Core 256 | . 125 10 121 Absorbed by Shields . | . . . . Redirected to Shielding 3 | . 1 2 . Regen/Repaired (Parts) 107 | . 107 . . Core Remaining (%) 100 | 100 . . . Volleys Fired 144 | 4 85 12 43 Largest 2 | 2 2 2 2 Hottest 110 | 60 80 40 110 Shots Fired 267 | 8 159 24 76 Gun 189 | 8 111 24 46 Cannon 67 | . 48 . 19 Launcher 11 | . . . 11 Special . | . . . . Kinetic 209 | 4 135 24 46 Thermal 19 | . . . 19 Explosive 11 | . . . 11 Electromagnetic 28 | 4 24 . . Robot Hit Streak 8 | 5 8 2 7 Robot Miss Streak 5 | 1 5 3 2 Penetration Max . | . . . . Secondary Targets 3 | . 1 . 2 Max Gunslinging Chain 1 | . 1 . 1 Shots Hit Robots 118 | 6 78 9 25 Core Hits 55 | 3 31 5 16 Critical Kills 1 | . 1 . . Critical Parts Destroyed 2 | . 2 . . Critical Strikes 3 | . 3 . . Destroy 3 | . 3 . . Melee Attacks . | . . . . Impact . | . . . . Slashing . | . . . . Piercing . | . . . . Sneak Attacks . | . . . . Combat Hostiles . | . . . . Follow-up Attacks . | . . . . Damage Inflicted 1714 | 65 886 74 689 Guns 973 | 65 543 74 291 Cannons 393 | . 336 . 57 Explosions 341 | . . . 341 Melee . | . . . . Ramming 7 | . 7 . . Kinetic 1121 | 17 739 74 291 Thermal 57 | . . . 57 Explosive 341 | . . . 341 Electromagnetic 188 | 48 140 . . Impact . | . . . . Slashing . | . . . . Piercing . | . . . . Highest Corruption . | . . . . Average Corruption . | . . . . Corruption Purged . | . . . . Corruption Blocked . | . . . . Overload Shots . | . . . . Overflow Damage 7 | . . . 7 Projectiles . | . . . . Explosions 7 | . . . 7 Melee . | . . . . Knockbacks 3 | . 3 . . Impact . | . . . . Kinetic 3 | . 3 . . Secondary . | . . . . Self-Inflicted Damage 31 | . . . 31 Shots 1 | . . . 1 Rammed 3 | . 3 . . Targets Rammed 3 | . 3 . . Kicked . | . . . . Crushed . | . . . . Highest Temperature 300 | 10 53 6 300 Average Temperature 28 | 7 11 6 158 Received Heat Transfer 1254 | . 375 24 855 Siege Activations . | . . . . Martial Activations . | . . . . Shielding Activations . | . . . . Robots Disrupted . | . . . . Combat Hostiles . | . . . . Robots Corrupted . | . . . . Combat Hostiles . | . . . . Parts Fried . | . . . . Impact Corruptions . | . . . . Robots Melted . | . . . . Combat Hostiles . | . . . . Parts Melted . | . . . . Heat Transferred 74 | . . . 74 Parts Sabotaged . | . . . . Parts Stolen . | . . . . Parts Stripped . | . . . . Power Chain Reactions . | . . . . Alert | -11 -10 -10 -10 ------- Run | Yrd Mat Min Sub Maximum Alert Level . | . . . . Low Security (%) 100 | 100 100 100 . Level 1 . | . . . . Level 2 . | . . . . Level 3 . | . . . . Level 4 . | . . . . Level 5 . | . . . . High Security . | . . . . Max Security . | . . . . Peak Influence 86 | 5 72 86 . Initial 10 | . 3 10 . Average 14 | . 16 13 . Influence Increases 757 | 10 487 140 120 Destroy 0b10 Robot/C 420 | . 260 100 60 Destroy 0b10 Robot/NC 35 | 10 25 . . Destroy Leader 76 | . 56 20 . Allied During Kill 5 | . . 5 . Successful Hack 40 | . 40 . . Disable Machine 30 | . 30 . . Destroy Structure 1 | . 1 . . Partial Spotted 15 | . 15 . . Lose Combat Pursuer 135 | . 60 15 60 Influence Decreases 757 | 5 464 102 186 Entered New Map 55 | . 2 18 35 Time Decay 582 | 5 412 64 101 Lost Part 100 | . 50 . 50 Lost Ally 20 | . . 20 . Squads Dispatched 4 | . 4 . . Investigation 3 | . 3 . . Extermination . | . . . . Reinforcement 1 | . 1 . . Assault . | . . . . Garrison . | . . . . Intercept . | . . . . Searches Triggered . | . . . . Construction Impeded . | . . . . Haulers Reinforced . | . . . . Active Scanning Responses . | . . . . Cargo Convoy Interrupts . | . . . . Stealth | -11 -10 -10 -10 --------- Run | Yrd Mat Min Sub Distress Signals . | . . . . Communications Jammed . | . . . . Distress Signals . | . . . . Times Spotted 65 | . 36 5 24 Peak Tracking Total 10 | . 4 3 10 Tactical Retreats 7 | . 3 1 3 Traps | -11 -10 -10 -10 ------- Run | Yrd Mat Min Sub Traps Triggered 2 | . 2 . . Indirectly . | . . . . Trap Hack Attempts . | . . . . Triggered . | . . . . Disarmed . | . . . . Reprogrammed . | . . . . Reused . | . . . . Traps Extracted . | . . . . Installed . | . . . . Triggered . | . . . . Most Traps Carried 1 | . . . 1 Machines | -11 -10 -10 -10 ---------- Run | Yrd Mat Min Sub Machines Disabled 2 | . 2 . . Max in Single Turn 1 | . 1 . . Machines Repaired . | . . . . Machines Dismantled . | . . . . Machines Sabotaged . | . . . . Overloaded Fab Kills . | . . . . Hacking | -11 -10 -10 -10 --------- Run | Yrd Mat Min Sub Machines Accessed 8 | . 8 . . Terminals 5 | . 5 . . Fabricators . | . . . . Repair Stations 1 | . 1 . . Recycling Units 2 | . 2 . . Scanalyzers . | . . . . Garrison Access . | . . . . Total Hacks 29 | . 29 . . Successful 15 | . 15 . . Failed 14 | . 14 . . Catastrophic 3 | . 3 . . Database Lockouts . | . . . . Manual 5 | . 5 . . Terminals 22 | . 22 . . Fabricators . | . . . . Repair Stations 3 | . 3 . . Recycling Units 4 | . 4 . . Scanalyzers . | . . . . Garrison Access . | . . . . Terminal Hacks 12 | . 12 . . Record 2 | . 2 . . Part Schematic 1 | . 1 . . Prototype ID Bank 1 | . 1 . . Branch Access Points 1 | . 1 . . Emergency Access Points 1 | . 1 . . Repair Station Index 1 | . 1 . . Locate Traps 2 | . 2 . . Assault Status 1 | . 1 . . Hauler Manifests 1 | . 1 . . Zone Layout 1 | . 1 . . Fabricator Hacks . | . . . . Repair Station Hacks 2 | . 2 . . Scan Component 1 | . 1 . . Repair 1 | . 1 . . Recycling Unit Hacks 1 | . 1 . . Retrieve Components 1 | . 1 . . Scanalyzer . | . . . . Garrison Access Hacks . | . . . . Unauthorized Hacks . | . . . . Terminals . | . . . . Fabricators . | . . . . Repair Stations . | . . . . Recycling Units . | . . . . Scanalyzers . | . . . . Garrison Access . | . . . . Data Cores Recovered . | . . . . Used . | . . . . Hacking Detections 8 | . 8 . . Full Trace Events 4 | . 4 . . Feedback Events . | . . . . Feedback Blocked . | . . . . Robot Schematics Acquired . | . . . . Robots Built . | . . . . Authchips . | . . . . Time . | . . . . Total Robot Build Rating . | . . . . Part Schematics Acquired 1 | . 1 . . Parts Built . | . . . . Authchips . | . . . . Time . | . . . . Total Part Build Rating . | . . . . Parts Repaired 1 | . 1 . . Time 26 | . 26 . . Parts Recycled . | . . . . Recycled Matter . | . . . . Retrieved Matter . | . . . . Retrieved Components 9 | . 9 . . Parts Scanalyzed . | . . . . Part Schematics Acquired . | . . . . Parts Damaged . | . . . . Bothacking | -11 -10 -10 -10 ------------ Run | Yrd Mat Min Sub Used RIF Installer . | . . . . Robots Hacked . | . . . . Non-combat . | . . . . Combat . | . . . . Robot Hacks Applied . | . . . . Relay Couplers Released . | . . . . Fabnet Peak Effective % . | . . . . Robots Rewired . | . . . . Allies Hacked . | . . . . Hacks Repelled . | . . . . Allies | -11 -10 -10 -10 -------- Run | Yrd Mat Min Sub Total Allies 3 | . . 3 . Largest Group 3 | . . 3 2 Highest-Rated Group 40 | . . 40 24 Highest-Rated Ally 16 | . . 16 16 Total Orders . | . . . . Ally Attacks 20 | . . 14 6 Total Damage 207 | . . 138 69 Kills 3 | . . 2 1 Allies Corrupted . | . . . . Allies Melted . | . . . . Intel | -11 -10 -10 -10 ------- Run | Yrd Mat Min Sub Active Infowar (turns) 868 | . . . 868 Optics 15 | . . . 15 Sensors 853 | . . . 853 Robot Analysis Total . | . . . . Derelict Logs Recovered 4 | . . 2 2 Drone Launches . | . . . . Drone Recoveries . | . . . . Exploration | -11 -10 -10 -10 ------------- Run | Yrd Mat Min Sub Turns Passed 6166 | 107 1898 2460 1701 Spaces Moved 2332 | 53 924 608 747 Core 10 | 4 . . 6 Treads 2265 | 49 867 608 741 Legs . | . . . . Wheels . | . . . . Hover . | . . . . Flight 57 | . 57 . . Fastest Speed 37 | 50 37 160 160 Average Speed 171 | 151 152 160 204 Slowest Speed 550 | 160 160 160 550 Overloaded Moves . | . . . . Propulsion Burnouts . | . . . . Robots Hopped . | . . . . Potential Cave-ins . | . . . . Cave-ins Triggered . | . . . . Exploration Rate (%) 56 | 6 91 89 38 Regions Visited 3 Branch Regions 2 Pre-discovered Areas 3 | . . 2 1 Known Exits Taken 1 | . 1 . . Unknown Exits Taken 2 | 1 . 1 . Scrap Searched 1 | . . 1 . Spaces Dug . | . . . . Terrain Destroyed 55 | . . . 55 Melee . | . . . . Projectile 2 | . . . 2 AOE 53 | . . . 53 Terrain Rammed . | . . . . Walls Destroyed . | . . . . Machines Disabled . | . . . . Actions | -11 -10 -10 -10 --------- Run | Yrd Mat Min Sub Total 4267 | 73 1270 2076 848 Wait 1688 | 3 218 1453 14 Move 2329 | 52 923 607 747 Hop . | . . . . Pick Up 42 | 8 18 4 12 Fast Attach 2 | . . . 2 Attach 24 | 5 12 . 7 Detach 1 | . 1 . . Swap 17 | . 6 . 11 Drop 17 | 1 4 . 12 Fire 144 | 4 85 12 43 Melee . | . . . . Ram . | . . . . Kick . | . . . . Crush 3 | . 3 . . Escape Stasis . | . . . . Rewire . | . . . . Trap . | . . . . Miscellaneous . | . . . . Route ------- -11/Scrapyard -10/Materials (discovered 4 exits: [*Mat x3] / *Min) -10/Mines (discovered 2 exits: [*Mat] / [*Sub]) -10/Subcaves History --------- Turn | Location | Event 4 | -11/Scrapyard | Discovered new exit (range 16) 108 | -11/Scrapyard | Entered Materials 175 | -10/Materials | Identified exit to Mines 275 | -10/Materials | Discovered new exit (range 3) 300 | -10/Materials | Build established: Mutant 579 | -10/Materials | Discovered new exit (range 8) 1155 | -10/Materials | Discovered new exit (range 5) 1556 | -10/Materials | Repaired Lgt. Treads 2006 | -10/Materials | Entered Mines 2035 | -10/Mines | Found a damaged Exp. Sensor Array with a note attached 2038 | -10/Mines | Found Prototype Device 2052 | -10/Mines | Learned location of Recycling (-8) 2197 | -10/Mines | YI-UF0 nonchalantly dropped a Grenade Launcher on the ground 2321 | -10/Mines | Discovered new exit (range 14) 2401 | -10/Mines | Discovered new exit (range 7) 3985 | -10/Mines | A weapon hastily lodged in a ceiling crevice suddenly fell to the ground 4177 | -10/Mines | Assisted by bots powering up and referring to "LRC-V3" 4207 | -10/Mines | Learned location of Mines (-9) 4255 | -10/Mines | Core integrity fell below 50% 4466 | -10/Mines | Entered Subcaves 4466 | -10/Subcaves | Accompanied by 2 allies 4466 | -10/Subcaves | Learned location of Zion (-7) 4467 | -10/Subcaves | Approached by a straggling Scientist 4634 | -10/Subcaves | Ambushed by swarm of Subdwellers 4637 | -10/Subcaves | Ambushed by Subdwellers from Twisted Machinery 4637 | -10/Subcaves | Ambushed by Subdwellers from Twisted Machinery 4637 | -10/Subcaves | Ambushed by Subdwellers from Twisted Machinery 4637 | -10/Subcaves | Ambushed by Subdwellers from Twisted Machinery 4693 | -10/Subcaves | Lost 6 allies 4867 | -10/Subcaves | Shifting Twisted Machinery released Shrapnel Trap 4904 | -10/Subcaves | Shifting Twisted Machinery released Sub. Machine Gun 4980 | -10/Subcaves | Build established: Scavenger-Mutant 5128 | -10/Subcaves | A swath of the cavern ceiling suddenly collapsed 5269 | -10/Subcaves | Core integrity fell below 20% 5314 | -10/Subcaves | Identified Exp. Sensor Array 5328 | -10/Subcaves | Lost 6 parts (1p2n1u2w) 5487 | -10/Subcaves | Build established: Mutant 5642 | -10/Subcaves | Learned Materials interactive machine intel 6167 | -10/Subcaves | Destroyed by 52-CGP(R) with Subdweller Beam Cannon Last Messages --------------- 05265_ Lgt. Assault Rifle fries itself beyond repair. 05269_ Acquired 41 matter. 05271_ Lgt. Treads destroyed. 05276_ Lgt. Ion Engine destroyed. 05291_ Sub. Machine Gun destroyed. 05297_ Disposable Heat Sink destroyed. 05297_ Critical hit (Meltdown: +300). 05298_ T3-YK9(R) destroyed. 05312_ Acquired Spk. Treads. 05314_ Identified Exp. Sensor Array. [Achievement: Risk Taker] 05642_ Acquired derelict log, extracted data. Data stored: Materials interactive machine intel. 05866_ Acquired Sub. Power Source. 06007_ BS-9Y0(u) builds Twisted Machinery. 06101_ Sub. Power Source shoots sparks and powers down. 06101_ Dropped Broken Sub. Power Source. Map ----- +----------------------------------------------------+ | "#???????????????????????????????????????????????? | | ##???????????????????????????????????????????????? | | #####????????????????????????????????????????????? | | # #????????????????????????????????????????????? | | ##???????????????????????????????????????????? | | #???????????????????????????????????????????? | | #???????????????????????????????????????????? | | #???????????????????????????????????????????? | | #???????????????????????????????????????????? | | ######???????????????????????????????????????????? | | ?????????????????????????????????????????????????? | | ????????????????????????????????#????????????????? | | ??????????????????????????????? ????????????????? | | ?????????????????????????????# ???????????????? | | ??????????????????????????### ????????????????? | | ?????????????????????????# ?????????????????? | | ????????????????????###?# ???????????????????? | | ????????????????????# ## #????????????????????? | | ??????????????????### #?????????????????????? | | ###???????????????# ##????????????????????? | | #""#??####??####??# ##?????##????????????? | | #"""### ##?# #### ## ##?? "#????????????? | | ?#"" ### ## ## #?????????????? | | ??#" ## ## #???????????????? | | ??## ## ## ## ## #???????????????? | | ###" ## * ### @ #???????????????? | | #" # ## ## "#??????????????? | | " #"### ### ##??????????????? | | "##?## #?# #???????????????? | | """ #???## #?# "" ?????????????? | | #""##????# #?## RR ?????????????? | | ####?????## #?# ###" ?????????????? | | ??????????### ## ###?????????????????? | | ????????????##### #### ##???????????????????? | | ????????????????#####??######????????????????????? | | ?????????????????????????????????????????????????? | | ?????????????????????????????????????????????????? | | ?????????????????????????????????????????????????? | | ?????????????????????????????????????????????????? | | ?????????????????????????????????????????????????? | | ?????????????????????????????????????????????????? | | ?????????????????????????????????????????????????? | | ?????????????????????????????????????????????????? | | ?????????????????????????????????????????????????? | | ?????????????????????????????????????????????????? | | ?????????????????????????????????????????????????? | | ?????????????????????????????????????????????????? | | ?????????????????????????????????????????????????? | | ?????????????????????????????????????????????????? | | | +----------------------------------------------------+ Best States ------------- Heat Dissipation 35 Coolant Potential 50 Energy Generation 15 Energy Capacity 200 Matter Stores 300 Matter Capacity 300 Sight Range 21 Robot Scan Range 20 Terrain Scan Density 10 Core Shielding 20 Evasion (%) 62 Recoil Reduction 2 Item Schematics ----------------- Assault Rifle | -10/Materials | Hacked Robot Schematics ------------------ None Fabricated ------------ Nothing Repaired ---------- Lgt. Treads | 23% | -10/Materials Alien Tech Used ----------------- None Achievements -------------- Risk Taker Shopping List Challenges ------------ None Game ------ Seed TeleporterRelaySpiker Manual? 0 Play Time 00:49:40 Cumulative 7.8 hours Start 2025.06.14 @ 19:34:18 End 2025.06.14 @ 20:34:55 Sessions 1 Manual Loads 0 Difficulty Rogue Special Mode None Game No. 5 Rogue 5 Adventurer 0 Explorer 0 Win Type - Total 0 Types 0/0/0/0/0/0/0/0/0/0 Lore% 3 Gallery% 8 Achievement% 8 Wizard Run 0 Options --------- Layout 1 ASCII 0 Keyboard 0 Movement Mouse Keybinds 0 Fullscreen 2 Font 32/SmallcapsGlow Map View 50x35 Zoom Use 0% Tactical HUD 1 Map Filters NONE Filters NONE Steam 1 RUN: 9c7176fc-8c0b-4941-b4a0-367f54b25396